lending/lending_fUSD_20240610
["ID","MTS","AMOUNT","RATE_DAILY","PERIOD"]
[328979228,1718039452148,-255.92993308,0.00029041,4]
[328979230,1718039452159,-456.62639452,0.00029041,4]
[328979232,1718039452169,-500.0,0.00029041,4]
[328979233,1718039452180,-500.0,0.00029041,4]
[328979235,1718039452190,-500.0,0.00029041,4]
[328979237,1718039452204,-694.54,0.00029041,4]
[328979239,1718039452214,-500.0,0.00029041,4]
[328979241,1718039452224,-694.54,0.00029041,4]
[328979243,1718039452235,-390.35523949,0.00029041,4]
[328979244,1718039452245,-694.54,0.00029041,4]
[328979245,1718039452255,-694.54,0.00029041,4]
[328979246,1718039452265,-694.54,0.00029041,4]
[328979247,1718039452276,-500.0,0.00029041,4]
[328979248,1718039452286,-500.0,0.00029041,4]
[328979250,1718039452296,-1357.33,0.00029041,4]
[328979252,1718039452306,-500.0,0.00029041,4]
[328979254,1718039452316,-500.0,0.00029041,4]
[328979256,1718039452326,-500.0,0.00029041,4]
[328979258,1718039452336,-694.54,0.00029041,4]
[328979260,1718039452346,-500.0,0.00029041,4]
[328979262,1718039452357,-500.0,0.00029041,4]
[328979263,1718039452368,-500.0,0.00029041,4]
[328979264,1718039452378,-500.0,0.00029041,4]
[328979265,1718039452388,-1357.33,0.00029041,4]
[328979266,1718039452399,-500.0,0.00029041,4]
[328979267,1718039452410,-694.54,0.00029041,4]
[328979268,1718039452420,-500.0,0.00029041,4]
[328979269,1718039452430,-471.74056469,0.00029041,4]
[328979270,1718039452440,-500.0,0.00029041,4]
[328979271,1718039452450,-1357.33,0.00029041,4]
[328979272,1718039452461,-500.0,0.00029041,4]
[328979273,1718039452470,-500.0,0.00029041,4]
[328979274,1718039452480,-694.54,0.00029041,4]
[328979275,1718039452490,-1357.33,0.00029041,4]
[328979276,1718039452499,-500.0,0.00029041,4]
[328979277,1718039452509,-500.0,0.00029041,4]
[328979278,1718039452519,-500.0,0.00029041,4]
[328979279,1718039452529,-1357.33,0.00029041,4]
[328979280,1718039452539,-500.0,0.00029041,4]
[328979281,1718039452548,-500.0,0.00029041,4]
[328979282,1718039452558,-1357.33,0.00029041,4]
[328979283,1718039452568,-500.0,0.00029041,4]
[328979284,1718039452578,-500.0,0.00029041,4]
[328979285,1718039452588,-500.0,0.00029041,4]
[328979286,1718039452598,-1357.33,0.00029041,4]
[328979287,1718039452607,-500.0,0.00029041,4]
[328979288,1718039452617,-500.0,0.00029041,4]
[328979289,1718039452627,-500.0,0.00029041,4]
[328979290,1718039452636,-1357.33,0.00029041,4]
[328979291,1718039452646,-500.0,0.00029041,4]
[328979292,1718039452657,-500.0,0.00029041,4]
[328979293,1718039452667,-500.0,0.00029041,4]
[328979294,1718039452676,-500.0,0.00029041,4]
[328979295,1718039452686,-503.81414574,0.00029041,4]
[328979296,1718039452697,-500.0,0.00029041,4]
[328979297,1718039452707,-500.0,0.00029041,4]
[328979298,1718039452718,-500.0,0.00029041,4]
[328979299,1718039452728,-500.0,0.00029041,4]
[328979300,1718039452739,-635.59658785,0.00029041,4]
[328979301,1718039452749,-500.0,0.00029041,4]
[328979302,1718039452759,-500.0,0.00029041,4]
[328979303,1718039452769,-439.42853418,0.00029041,4]
[328979304,1718039452780,-500.0,0.00029041,4]
[328979305,1718039452790,-500.0,0.00029041,4]
[328979306,1718039452800,-500.0,0.00029041,4]
[328979307,1718039452809,-500.0,0.00029041,4]
[328979308,1718039452819,-500.0,0.00029041,4]
[328979309,1718039452829,-500.0,0.00029041,4]
[328979310,1718039452838,-500.0,0.00029041,4]
[328979311,1718039452848,-500.0,0.00029041,4]
[328979312,1718039452858,-500.0,0.00029041,4]
[328979313,1718039452868,-500.0,0.00029041,4]
[328979314,1718039452878,-500.0,0.00029041,4]
[328979315,1718039452888,-277.03358804,0.00029041,4]
[328979316,1718039452898,-508.41257253,0.00029041,4]
[328979317,1718039452909,-500.0,0.00029041,4]
[328979318,1718039452919,-500.0,0.00029041,4]
[328979319,1718039452929,-500.0,0.00029041,4]
[328979320,1718039452939,-500.0,0.00029041,4]
[328979321,1718039452949,-500.0,0.00029041,4]
[328979322,1718039452959,-509.81756447,0.00029041,4]
[328979323,1718039452970,-500.0,0.00029041,4]
[328979324,1718039452980,-500.0,0.00029041,4]
[328979325,1718039452991,-500.0,0.00029041,4]
[328979326,1718039453000,-500.0,0.00029041,4]
[328979327,1718039453011,-500.0,0.00029041,4]
[328979328,1718039453021,-16.63915609,0.00029041,4]
[328979329,1718039453181,-507.47259314,0.00029041,4]
[328979330,1718039453195,-500.0,0.00029041,4]
[328979331,1718039453205,-500.0,0.00029041,4]
[328979332,1718039453216,-500.0,0.00029041,4]
[328979333,1718039453226,-500.0,0.00029041,4]
[328979334,1718039453238,-500.0,0.00029041,4]
[328979335,1718039453248,-500.0,0.00029041,4]
[328979336,1718039453259,-500.0,0.00029041,4]
[328979337,1718039453271,-500.0,0.00029041,4]
[328979338,1718039453282,-500.0,0.00029041,4]
[328979339,1718039453292,-500.0,0.00029041,4]
[328979340,1718039453303,-504.713145,0.00029041,4]
[328979341,1718039453313,-5338.91819642,0.00029041,4]
[328979342,1718039453326,-26166.08180358,0.00029041,4]
[328979343,1718039453337,-205.23118601,0.0002915,2]
[328979344,1718039453348,-153.77838055,0.00029234,2]
[328979345,1718039453358,-166.31570393,0.00029261,2]
[328979346,1718039453368,-1477.4,0.00029285,2]
[328979347,1718039453378,-234.291,0.00029285,2]
[328979348,1718039453389,-3676.0,0.00029285,2]
[328979349,1718039453399,-1065.0,0.00029285,2]
[328979350,1718039453411,-3144.0,0.000293,2]
[328979351,1718039453421,-1010.96,0.000293,2]
[328979352,1718039453432,-317.97446,0.00029315,14]
[328979353,1718039453442,-153.01690197,0.00029333,2]
[328979354,1718039453453,-928.90688563,0.00029398,2]
[328979355,1718039453464,-155.0,0.00029398,2]
[328979356,1718039453474,-205.23118601,0.000294,2]
[328979357,1718039453484,-427.99091877,0.000294,8]
[328979358,1718039453494,-153.01690197,0.00029404,2]
[328979359,1718039453504,-2100.0,0.00029416,2]
[328979360,1718039453514,-154.70281908,0.00029419,2]
[328979361,1718039453524,-157.200825,0.00029488,2]
[328979362,1718039453533,-226.83464883,0.000295,3]
[328979363,1718039453543,-500.0,0.00029572,3]
[328979364,1718039453553,-166.31570393,0.0002958,2]
[328979365,1718039453563,-346.20145903,0.00029583,3]
[328979366,1718039453572,-163.48925101,0.00029614,2]
[328979367,1718039453583,-205.23118601,0.00029649,2]
[328979368,1718039453592,-153.55793709,0.00029659,2]
[328979369,1718039453602,-160.00295818,0.00029675,2]
[328979370,1718039453612,-339.17922691,0.00029696,2]
[328979371,1718039453622,-1200.0,0.000297,2]
[328979372,1718039453632,-1200.0,0.000297,2]
[328979373,1718039453642,-1200.0,0.000297,2]
[328979374,1718039453652,-1200.0,0.000297,2]
[328979375,1718039453663,-1200.0,0.000297,2]
[328979376,1718039453673,-1167.85517744,0.000297,2]
[328979377,1718039453686,-32.14482256,0.000297,2]
[328979378,1718039453698,-967.85517744,0.000297,2]
[328979379,1718039453710,-232.14482256,0.000297,2]
[328979380,1718039453720,-1200.0,0.000297,2]
[328979381,1718039453729,-1200.0,0.000297,2]
[328979382,1718039453739,-1200.0,0.000297,2]
[328979383,1718039453749,-200.0,0.0002976,2]
[328979384,1718039453759,-500.0,0.0002976,2]
[328979385,1718039453769,-153.01690197,0.00029777,2]
[328979386,1718039453779,-1697.0,0.000298,2]
[328979387,1718039453790,-155.0,0.000298,2]
[328979388,1718039453800,-153.55793709,0.00029844,2]
[328979389,1718039453816,-543.68,0.00029868,4]
[328979390,1718039453832,-2001.03,0.00029868,4]
[328979391,1718039453843,-500.0,0.00029868,4]
[328979392,1718039453853,-604.21,0.00029868,4]
[328979393,1718039453863,-500.0,0.00029868,4]
[328979394,1718039453873,-695.01,0.00029868,4]
[328979395,1718039453883,-694.54,0.00029868,4]
[328979396,1718039453894,-500.0,0.00029869,4]
[328979397,1718039453905,-593.02705928,0.00029869,4]
[328979398,1718039453915,-529.71566506,0.00029869,4]
[328979399,1718039453925,-165.65876355,0.00029869,4]
[328979400,1718039453935,-500.0,0.00029869,4]
[328979401,1718039453946,-500.0,0.00029869,4]
[328979402,1718039453956,-500.0,0.00029869,4]
[328979403,1718039453966,-500.0,0.00029869,4]
[328979404,1718039453976,-707.41,0.00029869,4]
[328979405,1718039453986,-4059.83,0.00029869,4]
[328979406,1718039453996,-1341.47,0.00029869,4]
[328979407,1718039454006,-873.87,0.00029869,4]
[328979408,1718039454016,-500.0,0.00029869,4]
[328979409,1718039454160,-473.46697527,0.00029869,4]
[328979410,1718039454171,-500.0,0.00029869,4]
[328979411,1718039454182,-245.33326164,0.00029869,4]
[328979412,1718039454192,-500.0,0.00029869,4]
[328979413,1718039454207,-639.488598,0.00029869,4]
[328979414,1718039454217,-500.0,0.00029869,4]
[328979415,1718039454228,-594.02,0.00029869,4]
[328979416,1718039454240,-500.0,0.00029869,4]
[328979417,1718039454250,-500.0,0.00029869,4]
[328979418,1718039454260,-500.0,0.00029869,4]
[328979419,1718039454270,-585.48850494,0.00029869,4]
[328979420,1718039454282,-1571.52,0.00029869,4]
[328979421,1718039454292,-500.0,0.00029869,4]
[328979422,1718039454302,-935.21,0.00029869,4]
[328979423,1718039454313,-941.8,0.00029869,4]
[328979424,1718039454324,-500.0,0.00029869,4]
[328979425,1718039454334,-613.8667343,0.00029869,4]
[328979426,1718039454344,-500.0,0.00029869,4]
[328979427,1718039454355,-500.0,0.00029869,4]
[328979428,1718039454365,-2579.57,0.00029869,4]
[328979429,1718039454375,-619.44,0.00029869,4]
[328979430,1718039454385,-500.0,0.00029869,4]
[328979431,1718039454396,-700.28,0.00029869,4]
[328979432,1718039454406,-500.0,0.00029869,4]
[328979433,1718039454416,-500.0,0.00029869,4]
[328979434,1718039454426,-980.46,0.00029869,4]
[328979435,1718039454436,-454.26295428,0.00029869,4]
[328979436,1718039454445,-500.0,0.00029869,4]
[328979437,1718039454455,-500.0,0.00029869,4]
[328979438,1718039454464,-500.0,0.00029869,4]
[328979439,1718039454474,-500.0,0.00029869,4]
[328979440,1718039454484,-577.28,0.00029869,4]
[328979441,1718039454494,-500.0,0.00029869,4]
[328979442,1718039454503,-909.81,0.00029869,4]
[328979443,1718039454513,-500.0,0.00029869,4]
[328979444,1718039454523,-920.64,0.00029869,4]
[328979445,1718039454533,-777.89,0.00029869,4]
[328979446,1718039454543,-1235.18,0.00029869,4]
[328979447,1718039454552,-500.0,0.00029869,4]
[328979448,1718039454562,-500.0,0.00029869,4]
[328979449,1718039454572,-1195.97,0.00029869,4]
[328979450,1718039454582,-500.0,0.00029869,4]
[328979451,1718039454592,-500.0,0.00029869,4]
[328979452,1718039454601,-623.93,0.00029869,4]
[328979453,1718039454613,-500.0,0.00029869,4]
[328979454,1718039454624,-500.0,0.00029869,4]
[328979455,1718039454634,-920.17,0.00029869,4]
[328979456,1718039454644,-500.0,0.00029869,4]
[328979457,1718039454654,-500.0,0.00029869,4]
[328979458,1718039454664,-1123.64,0.00029869,4]
[328979459,1718039454674,-942.43,0.00029869,4]
[328979460,1718039454685,-500.0,0.00029869,4]
[328979461,1718039454697,-484.53241381,0.00029869,4]
[328979462,1718039454708,-1258.25,0.00029869,4]
[328979463,1718039454718,-2028.72,0.00029869,4]
[328979464,1718039454728,-1007.94,0.00029869,4]
[328979465,1718039454738,-202.84308384,0.00029869,4]
[328979466,1718039454749,-526.17,0.00029869,4]
[328979467,1718039454759,-500.0,0.00029869,4]
[328979468,1718039454769,-500.0,0.00029869,4]
[328979469,1718039454779,-712.6,0.00029869,4]
[328979470,1718039454789,-981.1,0.00029869,4]
[328979471,1718039454799,-805.16,0.00029869,4]
[328979472,1718039454809,-690.84,0.00029869,4]
[328979473,1718039454819,-3314.97,0.00029869,4]
[328979474,1718039454829,-642.77,0.00029869,4]
[328979475,1718039454839,-1994.67,0.00029869,4]
[328979476,1718039454850,-508.97,0.00029869,4]
[328979477,1718039454860,-366.61672278,0.00029869,4]
[328979478,1718039454873,-282.15327722,0.00029869,4]
[328979479,1718039454883,-500.0,0.00029869,4]
[328979480,1718039454892,-51.54256151,0.00029869,4]
[328979481,1718039454904,-311.184893,0.00029869,4]
[328979482,1718039454917,-769.96443153,0.00029869,4]
[328979483,1718039454929,-922.18811396,0.00029869,4]
[328979484,1718039454939,-1864.61,0.00029869,4]
[328979485,1718039454949,-888.67,0.00029869,4]
[328979486,1718039454958,-102.87204343,0.00029869,4]
[328979487,1718039454970,-397.12795657,0.00029869,4]
[328979488,1718039454980,-500.0,0.00029869,4]
[328979489,1718039454990,-500.0,0.00029869,4]
[328979490,1718039455000,-500.0,0.00029869,4]
[328979491,1718039455010,-5095.93,0.00029869,4]
[328979492,1718039455021,-1357.33,0.00029869,4]
[328979493,1718039455031,-500.0,0.00029869,4]
[328979494,1718039455041,-500.0,0.00029869,4]
[328979495,1718039455051,-500.0,0.00029869,4]
[328979496,1718039455062,-500.0,0.00029869,4]
[328979497,1718039455072,-500.0,0.00029869,4]
[328979498,1718039455082,-385.1810236,0.00029869,4]
[328979499,1718039455092,-3791.20983897,0.0002987,7]
[328979500,1718039455265,-470.26399671,0.0002901,2]
[328979501,1718039455278,-533.79203338,0.0002901,2]
[328979502,1718039455289,-525.331142,0.0002901,2]
[328979503,1718039455301,-3450.84282791,0.0002901,2]
[328979504,1718039455311,-15799.17517463,0.0002987,7]
[328979505,1718039455356,-28039.81876978,0.0002987,7]
[328979506,1718039455367,-679.98,0.0002987,7]
[328979507,1718039455380,-993.56644484,0.0002987,7]
[328979508,1718039455403,-67584.20356499,0.0002987,7]
[328979509,1718039455415,-249.50514984,0.00029897,2]
[328979510,1718039455424,-6071.71839046,0.00029897,2]
[328979511,1718039455433,-523.21660442,0.00029897,2]
[328979512,1718039455442,-165.49493539,0.00029898,2]
[328979513,1718039455452,-249.50514982,0.00029899,2]
[328979514,1718039455462,-6071.71839044,0.00029899,2]
[328979515,1718039455471,-523.21660441,0.00029899,2]
[328979516,1718039455482,-9242.51443001,0.00029899,2]
[328979517,1718039455491,-4000.0,0.00029899,2]
[328979518,1718039455501,-4000.0,0.00029899,2]
[328979519,1718039455511,-4000.0,0.00029899,2]
[328979520,1718039455520,-4059.8916,0.00029899,2]
[328979521,1718039455530,-205.23118601,0.00029899,2]
[328979522,1718039455539,-6972.402187,0.000299,2]
[328979523,1718039455549,-157.24411463,0.000299,2]
[328979524,1718039455558,-999.23522357,0.000299,2]
[328979525,1718039455567,-22999.66426948,0.000299,2]
[328979526,1718039455577,-1658.31563372,0.000299,2]
[328979527,1718039455586,-1651.90282929,0.000299,15]
[328979528,1718039455596,-190.37478883,0.000299,2]
[328979529,1718039455605,-166.31570393,0.000299,2]
[328979530,1718039455615,-249.50514982,0.000299,2]
[328979531,1718039455624,-6071.71839044,0.000299,2]
[328979532,1718039455634,-404.39759482,0.0002997,2]
[328979533,1718039455643,-4615.31940654,0.00029971,2]
[328979534,1718039455653,-238.0,0.0002999,2]
[328979535,1718039455665,-500.0,0.0002999,2]
[328979536,1718039455675,-506.33046232,0.0002999,2]
[328979537,1718039455684,-543.68,0.00029995,4]
[328979538,1718039455694,-2001.03,0.00029995,4]
[328979539,1718039455705,-500.0,0.00029995,4]
[328979540,1718039455715,-604.21,0.00029995,4]
[328979541,1718039455725,-500.0,0.00029995,4]
[328979542,1718039455735,-695.01,0.00029995,4]
[328979543,1718039455744,-694.54,0.00029995,4]
[328979544,1718039455754,-158.0484382,0.00029996,2]
[328979545,1718039455764,-2226.31055245,0.00029996,2]
[328979546,1718039455773,-581.15175964,0.00029996,2]
[328979547,1718039455783,-5000.0,0.00029996,2]
[328979548,1718039455792,-4163.8478063,0.00029996,2]
[328979549,1718039455802,-1487.67918963,0.00029996,2]
[328979550,1718039455811,-714.03763505,0.00029996,2]
[328979551,1718039455820,-288.18130188,0.00029996,2]
[328979552,1718039455830,-531.27413985,0.00029996,2]
[328979553,1718039455840,-741.51852945,0.00029996,2]
[328979554,1718039455850,-155.59057376,0.00029996,2]
[328979555,1718039455860,-2983.80478246,0.00029996,2]
[328979556,1718039455871,-784.81820932,0.00029996,2]
[328979557,1718039455881,-151.0,0.00029996,7]
[328979558,1718039455891,-594.02,0.00029996,4]
[328979559,1718039455901,-500.0,0.00029996,4]
[328979560,1718039455914,-935.21,0.00029996,4]
[328979561,1718039455924,-941.8,0.00029996,4]
[328979562,1718039455934,-500.0,0.00029996,4]
[328979563,1718039455943,-619.44,0.00029996,4]
[328979564,1718039455953,-500.0,0.00029996,4]
[328979565,1718039455963,-700.28,0.00029996,4]
[328979566,1718039455973,-500.0,0.00029996,4]
[328979567,1718039455983,-500.0,0.00029996,4]
[328979568,1718039455993,-980.46,0.00029996,4]
[328979569,1718039456003,-500.0,0.00029996,4]
[328979570,1718039456012,-214.83479489,0.00029996,4]
[328979571,1718039456022,-577.28,0.00029996,4]
[328979572,1718039456032,-909.81,0.00029996,4]
[328979573,1718039456042,-500.0,0.00029996,4]
[328979574,1718039456052,-920.64,0.00029996,4]
[328979575,1718039456062,-777.89,0.00029996,4]
[328979576,1718039456072,-1235.18,0.00029996,4]
[328979577,1718039456082,-1195.97,0.00029996,4]
[328979578,1718039456091,-500.0,0.00029996,4]
[328979579,1718039456100,-623.93,0.00029996,4]
[328979580,1718039456110,-500.0,0.00029996,4]
[328979581,1718039456120,-920.17,0.00029996,4]
[328979582,1718039456129,-500.0,0.00029996,4]
[328979583,1718039456139,-1123.64,0.00029996,4]
[328979584,1718039456148,-543.68,0.00029996,4]
[328979585,1718039456159,-942.43,0.00029996,4]
[328979586,1718039456168,-485.48044505,0.00029996,4]
[328979587,1718039456177,-1258.25,0.00029996,4]
[328979588,1718039456186,-2028.72,0.00029996,4]
[328979589,1718039456198,-1007.94,0.00029996,4]
[328979590,1718039456208,-526.17,0.00029996,4]
[328979591,1718039456217,-2001.03,0.00029996,4]
[328979592,1718039456227,-500.0,0.00029996,4]
[328979593,1718039456238,-712.6,0.00029996,4]
[328979594,1718039456247,-981.1,0.00029996,4]
[328979595,1718039456257,-805.16,0.00029996,4]
[328979596,1718039456267,-500.0,0.00029996,4]
[328979597,1718039456278,-690.84,0.00029996,4]
[328979598,1718039456288,-3314.97,0.00029996,4]
[328979599,1718039456298,-1994.67,0.00029996,4]
[328979600,1718039456307,-508.97,0.00029996,4]
[328979601,1718039456317,-604.21,0.00029996,4]
[328979602,1718039456328,-500.0,0.00029996,4]
[328979603,1718039456337,-500.0,0.00029996,4]
[328979604,1718039456348,-2054.88,0.00029996,4]
[328979605,1718039456358,-888.67,0.00029996,4]
[328979606,1718039456368,-500.0,0.00029996,4]
[328979607,1718039456377,-500.0,0.00029996,4]
[328979608,1718039456387,-695.01,0.00029996,4]
[328979609,1718039456397,-500.0,0.00029996,4]
[328979610,1718039456410,-500.0,0.00029996,4]
[328979611,1718039456419,-5095.93,0.00029996,4]
[328979612,1718039456428,-155.0,0.00029996,2]
[328979613,1718039456438,-694.54,0.00029996,4]
[328979614,1718039456447,-1357.33,0.00029996,4]
[328979615,1718039456457,-500.0,0.00029996,4]
[328979616,1718039456467,-500.0,0.00029996,4]
[328979617,1718039456476,-530.92559727,0.00029996,4]
[328979618,1718039456486,-500.0,0.00029996,4]
[328979619,1718039456496,-500.0,0.00029996,4]
[328979620,1718039456506,-500.0,0.00029996,4]
[328979621,1718039456516,-675.19987162,0.00029996,2]
[328979622,1718039456525,-1002.45605065,0.00029997,2]
[328979623,1718039456536,-163.31895729,0.00029997,4]
[328979624,1718039456545,-500.0,0.00029997,4]
[328979625,1718039456555,-500.0,0.00029997,4]
[328979626,1718039456565,-500.0,0.00029997,4]
[328979627,1718039456575,-500.0,0.00029997,4]
[328979628,1718039456585,-500.0,0.00029997,4]
[328979629,1718039456594,-500.0,0.00029997,4]
[328979630,1718039456609,-500.0,0.00029997,4]
[328979631,1718039456618,-500.0,0.00029997,4]
[328979632,1718039456628,-500.0,0.00029997,4]
[328979633,1718039456638,-500.0,0.00029997,4]
[328979634,1718039456648,-500.0,0.00029997,4]
[328979635,1718039456658,-500.0,0.00029997,4]
[328979636,1718039456668,-500.0,0.00029997,4]
[328979637,1718039456678,-500.0,0.00029997,4]
[328979638,1718039456687,-500.0,0.00029997,4]
[328979639,1718039456697,-500.0,0.00029997,4]
[328979640,1718039456707,-500.0,0.00029997,4]
[328979641,1718039456716,-500.0,0.00029997,4]
[328979642,1718039456726,-707.41,0.00029997,4]
[328979643,1718039456737,-707.41,0.00029997,4]
[328979644,1718039456748,-707.41,0.00029997,4]
[328979645,1718039456758,-707.41,0.00029997,4]
[328979646,1718039456768,-707.41,0.00029997,4]
[328979647,1718039456778,-707.41,0.00029997,4]
[328979648,1718039456788,-4059.83,0.00029997,4]
[328979649,1718039456798,-4059.83,0.00029997,4]
[328979650,1718039456808,-4059.83,0.00029997,4]
[328979651,1718039456817,-4059.83,0.00029997,4]
[328979652,1718039456827,-4059.83,0.00029997,4]
[328979653,1718039456836,-4059.83,0.00029997,4]
[328979654,1718039456846,-1341.47,0.00029997,4]
[328979655,1718039456856,-1341.47,0.00029997,4]
[328979656,1718039456866,-1341.47,0.00029997,4]
[328979657,1718039456875,-1341.47,0.00029997,4]
[328979658,1718039456885,-1341.47,0.00029997,4]
[328979659,1718039456895,-1341.47,0.00029997,4]
[328979660,1718039456905,-873.87,0.00029997,4]
[328979661,1718039456915,-873.87,0.00029997,4]
[328979662,1718039456925,-873.87,0.00029997,4]
[328979663,1718039456935,-873.87,0.00029997,4]
[328979664,1718039456944,-873.87,0.00029997,4]
[328979665,1718039456954,-873.87,0.00029997,4]
[328979666,1718039456964,-500.0,0.00029997,4]
[328979667,1718039456974,-500.0,0.00029997,4]
[328979668,1718039456984,-336.16,0.00029997,4]
[328979669,1718039456994,-500.0,0.00029997,4]
[328979670,1718039457004,-500.0,0.00029997,4]
[328979671,1718039457014,-500.0,0.00029997,4]
[328979672,1718039457024,-500.0,0.00029997,4]
[328979673,1718039457034,-289.30762531,0.00029997,4]
[328979674,1718039457050,-210.69237469,0.00029997,4]
[328979675,1718039457059,-183.88863876,0.00029997,4]
[328979676,1718039457073,-118.24277911,0.00029997,4]
[328979677,1718039457083,-500.0,0.00029997,4]
[328979678,1718039457093,-500.0,0.00029997,4]
[328979679,1718039457104,-500.0,0.00029997,4]
[328979680,1718039457114,-500.0,0.00029997,4]
[328979681,1718039457124,-500.0,0.00029997,4]
[328979682,1718039457134,-500.0,0.00029997,4]
[328979683,1718039457144,-251.40722089,0.00029997,4]
[328979684,1718039457158,-342.61277911,0.00029997,4]
[328979685,1718039457168,-345.94957244,0.00029997,4]
[328979686,1718039457180,-248.07042756,0.00029997,4]
[328979687,1718039457190,-594.02,0.00029997,4]
[328979688,1718039457204,-594.02,0.00029997,4]
[328979689,1718039457214,-594.02,0.00029997,4]
[328979690,1718039457224,-594.02,0.00029997,4]
[328979691,1718039457380,-500.0,0.00029997,4]
[328979692,1718039457390,-500.0,0.00029997,4]
[328979693,1718039457400,-500.0,0.00029997,4]
[328979694,1718039457411,-500.0,0.00029997,4]
[328979695,1718039457421,-500.0,0.00029997,4]
[328979696,1718039457431,-500.0,0.00029997,4]
[328979697,1718039457442,-500.0,0.00029997,4]
[328979698,1718039457452,-500.0,0.00029997,4]
[328979699,1718039457463,-500.0,0.00029997,4]
[328979700,1718039457473,-500.0,0.00029997,4]
[328979701,1718039457483,-500.0,0.00029997,4]
[328979702,1718039457494,-500.0,0.00029997,4]
[328979703,1718039457504,-1571.52,0.00029997,4]
[328979704,1718039457514,-1571.52,0.00029997,4]
[328979705,1718039457524,-1571.52,0.00029997,4]
[328979706,1718039457534,-1571.52,0.00029997,4]
[328979707,1718039457544,-1571.52,0.00029997,4]
[328979708,1718039457554,-500.0,0.00029997,4]
[328979709,1718039457564,-500.0,0.00029997,4]
[328979710,1718039457573,-935.21,0.00029997,4]
[328979711,1718039457583,-935.21,0.00029997,4]
[328979712,1718039457593,-935.21,0.00029997,4]
[328979713,1718039457602,-935.21,0.00029997,4]
[328979714,1718039457612,-935.21,0.00029997,4]
[328979715,1718039457622,-941.8,0.00029997,4]
[328979716,1718039457632,-941.8,0.00029997,4]
[328979717,1718039457641,-500.0,0.00029997,4]
[328979718,1718039457651,-500.0,0.00029997,4]
[328979719,1718039457662,-941.8,0.00029997,4]
[328979720,1718039457672,-500.0,0.00029997,4]
[328979721,1718039457682,-941.8,0.00029997,4]
[328979722,1718039457692,-572.18869836,0.00029997,4]
[328979723,1718039457705,-941.8,0.00029997,4]
[328979724,1718039457715,-941.8,0.00029997,4]
[328979725,1718039457724,-500.0,0.00029997,4]
[328979726,1718039457735,-500.0,0.00029997,4]
[328979727,1718039457745,-500.0,0.00029997,4]
[328979728,1718039457755,-500.0,0.00029997,4]
[328979729,1718039457765,-500.0,0.00029997,4]
[328979730,1718039457775,-500.0,0.00029997,4]
[328979731,1718039457785,-500.0,0.00029997,4]
[328979732,1718039457796,-500.0,0.00029997,4]
[328979733,1718039457806,-500.0,0.00029997,4]
[328979734,1718039457816,-622.69787041,0.00029997,4]
[328979735,1718039457826,-2579.57,0.00029997,4]
[328979736,1718039457836,-2579.57,0.00029997,4]
[328979737,1718039457846,-2579.57,0.00029997,4]
[328979738,1718039457855,-2579.57,0.00029997,4]
[328979739,1718039457866,-2579.57,0.00029997,4]
[328979740,1718039457875,-619.44,0.00029997,4]
[328979741,1718039457884,-619.44,0.00029997,4]